Cogmind - Beta 17.1 @@@ ROGUE MODE // 2026.08.29 @ 05:00:56 Player: Somberlain Result: Destroyed by GH-H4L(R) with Subdweller Laser Performance ------------- Evolutions (0) 0 Regions Visited (3) 600 Robots Destroyed (11) 55 Value Destroyed (328) 328 Prototype IDs (2) 40 Alien Tech Used (0) 0 Bonus (-58) -58 TOTAL SCORE: 965 Bonus ------- Friendly Fire -58 Cogmind --------- Core Integrity 0/250 Matter 183/300 Energy 250/250 System Corruption 0% Temperature Cool (6) Movement Walking (190) Ox1 Location -10/Subcaves Parts ------- > --- POWER (1) -------- Ion Engine > --- PROPULSION (2) --- Aluminum Leg > --- UTILITY (2) ------ Small Storage Unit > --- WEAPON (2) ------- Rocket Launcher > --- INVENTORY (8) ---- (None) Peak State ------------ > --- POWER ------------ Ion Engine > --- PROPULSION ------- Aluminum Leg Aluminum Leg > --- UTILITY ---------- Small Storage Unit > --- WEAPON ----------- Medium Laser Rocket Launcher > --- INVENTORY -------- Light Assault Rifle [Rating: 7] Favorites ----------- Power Ion Engine Engine Ion Engine Propulsion Aluminum Leg Leg Aluminum Leg Utility Small Storage Unit Storage Small Storage Unit Weapon Medium Laser Energy Gun Medium Laser Ballistic Gun Light Assault Rifle Launcher Rocket Launcher Build | -11 -10 -10 -10 ------- Run | Yrd Mat Min Sub Slots Evolved . | . . . . Power . | . . . . Propulsion . | . . . . Utility . | . . . . Weapon . | . . . . Parts Attached 11 | 8 . 2 1 Power 2 | 2 . . . Engine 2 | 2 . . . Core . | . . . . Reactor . | . . . . Propulsion 2 | 2 . . . Treads . | . . . . Leg 2 | 2 . . . Wheel . | . . . . Hover . | . . . . Flight . | . . . . Utility 1 | 1 . . . Device . | . . . . Storage 1 | 1 . . . Processor . | . . . . Hackware . | . . . . Protection . | . . . . Artifact . | . . . . Weapon 6 | 3 . 2 1 Energy Gun 3 | 2 . 1 . Energy Cannon . | . . . . Ballistic Gun 1 | 1 . . . Ballistic Cannon . | . . . . Launcher 2 | . . 1 1 Special Weapon . | . . . . Impact Weapon . | . . . . Slashing Weapon . | . . . . Piercing Weapon . | . . . . Special Melee Weapon . | . . . . Unidentified Prototypes . | . . . . Parts Lost 3 | . . . 3 Power . | . . . . Propulsion 1 | . . . 1 Utility . | . . . . Weapon 2 | . . . 2 Highest Loss Streak 3 | . . . 3 To Critical Strikes . | . . . . Average Backups . | . . . . Power . | . . . . Propulsion . | . . . . Utility . | . . . . Weapon . | . . . . Tool/Special . | . . . . Unused Backups . | . . . . Power . | . . . . Propulsion . | . . . . Utility . | . . . . Weapon . | . . . . Tool/Special . | . . . . Average Slot Usage (%) 81 | . 83 85 76 Engine 13 | . 12 14 14 Leg 26 | . 28 28 23 Storage 14 | . 14 14 14 Energy Gun 18 | . 14 22 19 Ballistic Gun 5 | . 14 1 . Launcher 2 | . . 4 3 Peak Build Rating 7 | 6 6 7 7 Average Rating 5 | 4 5 6 5 On Entrance 4 | . 6 6 6 Avg Prop Armor Cover (%) . | . . . . Naked Turns . | . . . . Heaviest Build 18 | 13 13 16 18 Greatest Support 20 | 20 20 20 20 Greatest Overweight (x) 1 | . . . 1 Average Overweight (x) . | . . . . Largest Inventory Capacity 8 | 8 8 8 8 Average Capacity 7 | 6 8 8 8 Most Carried 2 | 1 . 2 1 Average Carried . | . . . . Final Capacity 8 | 8 8 8 8 Final Carried 1 | . . 1 . Class Distribution -------------------- 100% | Mutant Dominant Class ---------------- Mutant | -10/Materials Mutant | -10/Mines Mutant | -10/Subcaves Resources | -11 -10 -10 -10 ----------- Run | Yrd Mat Min Sub Matter Collected 329 | 229 65 32 3 Remotely . | . . . . Salvage Created 216 | . 89 65 62 Parts 13 | . 3 3 7 Haulers Intercepted . | . . . . Recyclers Shooed . | . . . . Parts Field Recycled . | . . . . Retrieved Matter . | . . . . Parts Self-Destructed 6 | . . . 6 Prevented . | . . . . Parts Restored . | . . . . Kills | -11 -10 -10 -10 ------- Run | Yrd Mat Min Sub Combat Hostiles Destroyed 10 | . 2 2 6 Guns 6 | . 2 1 3 AOE 4 | . . 1 3 Classes Destroyed 5 | . 2 . 3 Watcher 1 | . 1 . . Swarmer 3 | . . . 3 Grunt 4 | . 2 2 . Subdweller 3 | . . . 3 Scientist 1 | . . . 1 Best Kill Streak 3 | . 3 2 3 Combat Bots Only 3 | . 2 2 3 Max Kills in Single Turn 1 | . 1 1 1 Gunslinging . | . . . . Exploded 1 | . . 1 1 Melee . | . . . . Uniques/NPCs Destroyed . | . . . . Combat | -11 -10 -10 -10 -------- Run | Yrd Mat Min Sub Hostile Shots Fired 51 | . 21 7 23 Missed 16 | . 5 4 7 Hits 35 | . 16 3 16 Projectile 35 | . 16 3 16 Damage Taken 738 | . 254 49 435 Core 255 | . 71 18 166 Absorbed by Shields . | . . . . Regen/Repaired (Parts) 37 | . 37 . . Core Remaining (%) 100 | 100 . . . Volleys Fired 32 | . 14 7 11 Largest 2 | . 2 2 2 Hottest 90 | . 70 90 90 Shots Fired 57 | . 28 14 15 Gun 48 | . 28 13 7 Cannon . | . . . . Launcher 9 | . . 1 8 Special . | . . . . Kinetic 17 | . 14 . 3 Thermal 34 | . 14 13 7 Explosive 6 | . . 1 5 Electromagnetic . | . . . . Robot Hit Streak 11 | . 11 4 3 Robot Miss Streak 5 | . 5 1 1 Penetration Max . | . . . . Secondary Targets 3 | . 1 . 2 Max Gunslinging Chain 1 | . 1 . 1 Shots Hit Robots 36 | . 20 7 9 Core Hits 21 | . 8 3 10 Critical Kills . | . . . . Critical Parts Destroyed . | . . . . Critical Strikes 2 | . 1 . 1 Burn 2 | . 1 . 1 Melee Attacks . | . . . . Impact . | . . . . Slashing . | . . . . Piercing . | . . . . Sneak Attacks . | . . . . Combat Hostiles . | . . . . Follow-up Attacks . | . . . . Damage Inflicted 1087 | . 235 172 680 Guns 348 | . 226 83 39 Cannons . | . . . . Explosions 728 | . . 87 641 Melee . | . . . . Ramming 11 | . 9 2 . Kinetic 464 | . 101 . 363 Thermal 247 | . 125 83 39 Explosive 365 | . . 87 278 Electromagnetic . | . . . . Impact . | . . . . Slashing . | . . . . Piercing . | . . . . Highest Corruption . | . . . . Average Corruption . | . . . . Corruption Purged . | . . . . Corruption Blocked . | . . . . Overload Shots . | . . . . Overflow Damage 59 | . . 2 57 Projectiles . | . . . . Explosions 59 | . . 2 57 Melee . | . . . . Knockbacks . | . . . . Impact . | . . . . Kinetic . | . . . . Secondary . | . . . . Self-Inflicted Damage 175 | . . . 175 Shots 5 | . . . 5 Rammed . | . . . . Targets Rammed 2 | . 1 1 . Kicked 2 | . 1 1 . Crushed . | . . . . Highest Temperature 222 | . 222 128 . Average Temperature 81 | . 94 57 . Received Heat Transfer 171 | . 108 27 36 Siege Activations . | . . . . Martial Activations . | . . . . Shielding Activations . | . . . . Robots Disrupted . | . . . . Combat Hostiles . | . . . . Robots Corrupted . | . . . . Combat Hostiles . | . . . . Parts Fried . | . . . . Impact Corruptions . | . . . . Robots Melted . | . . . . Combat Hostiles . | . . . . Parts Melted 2 | . 1 . 1 Heat Transferred 864 | . 444 235 185 Parts Sabotaged . | . . . . Parts Stolen . | . . . . Parts Stripped . | . . . . Power Chain Reactions . | . . . . Alert | -11 -10 -10 -10 ------- Run | Yrd Mat Min Sub Maximum Alert Level . | . . . . Low Security (%) 100 | 100 100 100 . Level 1 . | . . . . Level 2 . | . . . . Level 3 . | . . . . Level 4 . | . . . . Level 5 . | . . . . High Security . | . . . . Max Security . | . . . . Peak Influence 49 | . 47 49 . Initial . | . . . . Average 7 | . 8 8 . Influence Increases 199 | . 70 59 70 Destroy 0b10 Robot/C 140 | . 40 40 60 Destroy 0b10 Robot/NC 5 | . 5 . . Destroy Leader 32 | . 12 10 10 Successful Hack 13 | . 13 . . Destroy Structure 9 | . . 9 . Influence Decreases 199 | . 70 59 70 Time Decay 179 | . 70 59 50 Lost Part 20 | . . . 20 Squads Dispatched . | . . . . Investigation . | . . . . Extermination . | . . . . Reinforcement . | . . . . Assault . | . . . . Garrison . | . . . . Intercept . | . . . . Searches Triggered . | . . . . Construction Impeded . | . . . . Haulers Reinforced . | . . . . Active Scanning Responses . | . . . . Cargo Convoy Interrupts . | . . . . Stealth | -11 -10 -10 -10 --------- Run | Yrd Mat Min Sub Distress Signals . | . . . . Communications Jammed . | . . . . Distress Signals . | . . . . Times Spotted 12 | . 3 2 7 Peak Tracking Total 3 | . 3 2 3 Tactical Retreats . | . . . . Traps | -11 -10 -10 -10 ------- Run | Yrd Mat Min Sub Traps Triggered 1 | . 1 . . Indirectly . | . . . . Trap Hack Attempts . | . . . . Triggered . | . . . . Disarmed . | . . . . Reprogrammed . | . . . . Reused . | . . . . Traps Extracted . | . . . . Installed . | . . . . Triggered . | . . . . Machines | -11 -10 -10 -10 ---------- Run | Yrd Mat Min Sub Machines Disabled . | . . . . Max in Single Turn . | . . . . Machines Repaired . | . . . . Machines Dismantled . | . . . . Machines Sabotaged . | . . . . Overloaded Fab Kills . | . . . . Hacking | -11 -10 -10 -10 --------- Run | Yrd Mat Min Sub Machines Accessed 5 | . 5 . . Terminals 3 | . 3 . . Fabricators . | . . . . Repair Stations 1 | . 1 . . Recycling Units 1 | . 1 . . Scanalyzers . | . . . . Garrison Access . | . . . . Total Hacks 13 | . 13 . . Successful 5 | . 5 . . Failed 8 | . 8 . . Catastrophic 2 | . 2 . . Database Lockouts . | . . . . Manual 6 | . 6 . . Terminals 7 | . 7 . . Fabricators . | . . . . Repair Stations 4 | . 4 . . Recycling Units 2 | . 2 . . Scanalyzers . | . . . . Garrison Access . | . . . . Terminal Hacks 2 | . 2 . . Prototype ID Bank 1 | . 1 . . Registered Components 1 | . 1 . . Fabricator Hacks . | . . . . Repair Station Hacks 2 | . 2 . . Scan Component 1 | . 1 . . Repair 1 | . 1 . . Recycling Unit Hacks 1 | . 1 . . Retrieve Components 1 | . 1 . . Scanalyzer . | . . . . Garrison Access Hacks . | . . . . Unauthorized Hacks . | . . . . Terminals . | . . . . Fabricators . | . . . . Repair Stations . | . . . . Recycling Units . | . . . . Scanalyzers . | . . . . Garrison Access . | . . . . Data Cores Recovered . | . . . . Used . | . . . . Hacking Detections 3 | . 3 . . Full Trace Events 1 | . 1 . . Feedback Events . | . . . . Feedback Blocked . | . . . . Robot Schematics Acquired . | . . . . Robots Built . | . . . . Authchips . | . . . . Time . | . . . . Total Robot Build Rating . | . . . . Part Schematics Acquired . | . . . . Parts Built . | . . . . Authchips . | . . . . Time . | . . . . Total Part Build Rating . | . . . . Part Studies Acquired . | . . . . Parts Repaired 1 | . 1 . . Time 26 | . 26 . . Parts Recycled . | . . . . Recycled Matter . | . . . . Retrieved Matter . | . . . . Retrieved Components 1 | . 1 . . Parts Scanalyzed . | . . . . Part Schematics Acquired . | . . . . Parts Damaged . | . . . . Bothacking | -11 -10 -10 -10 ------------ Run | Yrd Mat Min Sub Used RIF Installer . | . . . . Robots Hacked . | . . . . Non-combat . | . . . . Combat . | . . . . Robot Hacks Applied . | . . . . Relay Couplers Released . | . . . . Fabnet Peak Effective % . | . . . . Robots Rewired . | . . . . Allies Hacked . | . . . . Hacks Repelled . | . . . . Allies | -11 -10 -10 -10 -------- Run | Yrd Mat Min Sub Total Allies . | . . . . Largest Group . | . . . . Highest-Rated Group . | . . . . Highest-Rated Ally . | . . . . Total Orders . | . . . . Ally Attacks . | . . . . Total Damage . | . . . . Kills . | . . . . Allies Corrupted . | . . . . Allies Melted . | . . . . Intel | -11 -10 -10 -10 ------- Run | Yrd Mat Min Sub Active Infowar (turns) . | . . . . Robot Analysis Total . | . . . . Derelict Logs Recovered 1 | . . 1 . Drone Launches . | . . . . Drone Recoveries . | . . . . Exploration | -11 -10 -10 -10 ------------- Run | Yrd Mat Min Sub Turns Passed 962 | 75 329 300 258 Spaces Moved 621 | 55 218 215 133 Core 4 | 4 . . . Treads . | . . . . Legs 617 | 51 218 215 133 Wheels . | . . . . Hover . | . . . . Flight . | . . . . Fastest Speed 50 | 50 120 120 120 Average Speed 123 | 114 120 120 137 Slowest Speed 190 | 120 120 120 190 Overloaded Moves . | . . . . Propulsion Burnouts . | . . . . Robots Hopped . | . . . . Potential Cave-ins . | . . . . Cave-ins Triggered . | . . . . Exploration Rate (%) 22 | 4 40 34 13 Regions Visited 3 Branch Regions 2 Pre-discovered Areas 1 | . . 1 . Known Exits Taken . | . . . . Unknown Exits Taken 3 | 1 1 1 . Scrap Searched 1 | . . 1 . Spaces Dug . | . . . . Terrain Destroyed 56 | . . 11 45 Melee . | . . . . Projectile . | . . . . AOE 56 | . . 11 45 Terrain Rammed . | . . . . Walls Destroyed . | . . . . Machines Disabled . | . . . . Actions | -11 -10 -10 -10 --------- Run | Yrd Mat Min Sub Total 757 | 63 259 242 193 Wait 88 | . 26 15 47 Move 618 | 54 217 214 133 Hop . | . . . . Pick Up 2 | . . 2 . Fast Attach 7 | 6 1 . . Attach 1 | . . . 1 Detach . | . . . . Swap 5 | 2 . 2 1 Drop 2 | 1 . 1 . Fire 32 | . 14 7 11 Melee . | . . . . Ram . | . . . . Kick 2 | . 1 1 . Crush . | . . . . Escape Stasis . | . . . . Rewire . | . . . . Trap . | . . . . Miscellaneous . | . . . . Route ------- -11/Scrapyard -10/Materials (discovered 2 exits: [*Min] / [*Sub]) -10/Mines -10/Subcaves History --------- Turn | Location | Event 30 | -11/Scrapyard | Discovered new exit (range 16) 76 | -11/Scrapyard | Entered Materials 156 | -10/Materials | Discovered new exit (range 14) 288 | -10/Materials | Discovered new exit (range 16) 305 | -10/Materials | Build established: Mutant 332 | -10/Materials | Repaired Ion Engine 405 | -10/Materials | Entered Mines 420 | -10/Mines | Received a Rocket Launcher from a helpful Derelict 677 | -10/Mines | Discovered new exit (range 13) 705 | -10/Mines | Entered Subcaves 706 | -10/Subcaves | Approached by a straggling Scientist 804 | -10/Subcaves | Shifting Twisted Machinery released Piercing Trap 873 | -10/Subcaves | Shifting Twisted Machinery released Sub. Shrapnel Launcher 885 | -10/Subcaves | Core integrity fell below 50% 920 | -10/Subcaves | Lost 3 parts (1n2w) 960 | -10/Subcaves | Ambushed by Subdwellers from Twisted Machinery 962 | -10/Subcaves | Core integrity fell below 20% 963 | -10/Subcaves | Destroyed by GH-H4L(R) with Subdweller Laser Last Messages --------------- 3O-TE5(c): "I think it's somewhere south of here" Sub. Shrapnel Launcher falls loose from the Twisted Machinery. 00880_ Acquired Sub. Shrapnel Launcher. 00882_ Med. Laser destroyed. 00882_ Destroyed Med. Laser. 00885_ Aluminum Leg destroyed. 00885_ Destroyed Aluminum Leg. 00885_ 3O-TE5(c) destroyed. 00889_ Sub. Shrapnel Launcher destroyed. 00889_ Destroyed Sub. Shrapnel Launcher. 00892_ IE-62Z(R) destroyed. 00898_ NW-1GV(R) destroyed. 00903_ Acquired 3 matter. 00910_ The unstable cave ceiling collapses. 00960_ GH-H4L(R) emerges from the Twisted Machinery. 00962_ The unstable cave ceiling collapses. 00962_ E6-533(R) destroyed. Map ----- +----------------------------------------------------+ | ###?????#% #?????# """### ## #?????? | | ??????????##???#??# # " #?????? | | ???????????????# ## " #?????? | | ????????????????# " ##?????? | | ????????????????# "#### ##??????? | | ????????????????# #### ""#??######???????? | | ?????????????????????# ##???????????????? | | ?????????????????????###"" ##???????????????? | | ???????????????????????#### ""####????????????? | | ???????????????????????##?# " ##???????????? | | ???????????????????????# ## "" " ##??????????? | | ???????????????????????# " """ #??????????? | | ???????????????????????# "" ### #????????? | | ???????????????????????### #?? #????????? | | ?????????????????????????# #????# #????????? | | ?????????????????????????# ##??#??? ?????????? | | ?????????????????????????# ##?? #?????????????? | | ?????????????????????????# ##?? #?????????????? | | ?????????????????????????## ## #?????????????? | | ?????????????????????????# ## #????????? | | ?????????????